Cogmind - Beta 13 *** ADVENTURER MODE // 2024.06.19 @ 19:43:09 Player: PL-41D Result: Destroyed by as-24843 with Assembled Rifle Performance ------------- Evolutions (0) 0 Regions Visited (2) 400 Robots Destroyed (20) 100 Value Destroyed (263) 263 Prototype IDs (2) 40 Alien Tech Used (0) 0 Bonus (0) 0 TOTAL SCORE: 803 Bonus ------- None Cogmind --------- Core Integrity 0/250 Matter 283/300 Energy 100/100 System Corruption 2% Temperature Cool (50) Movement Treading (160) Location -10/Mines Parts ------- > --- POWER (1) -------- (None) > --- PROPULSION (2) --- Improved Treads > --- UTILITY (2) ------ Large Storage Unit > --- WEAPON (2) ------- (None) > --- INVENTORY (15) --- Light Ion Engine Improved Treads Improved Treads VTOL Module Improved Heat Sink Seismic Detector Propulsion Shielding Light Armor Plating EM Shotgun Assault Rifle Light Cannon Mining Laser Hammer Peak State ------------ > --- POWER ------------ Ion Engine > --- PROPULSION ------- Improved Treads Improved Treads > --- UTILITY ---------- Improved Heat Sink Medium Storage Unit > --- WEAPON ----------- Spread Laser Spread Laser > --- INVENTORY -------- Light Ion Engine Improved Treads Seismic Detector Light Armor Plating EM Shotgun Assault Rifle Light Cannon Hammer [Rating: 14] Favorites ----------- Power Ion Engine Engine Ion Engine Propulsion Improved Treads Treads Improved Treads Wheel Wheel Flight Unit VTOL Module Utility Seismic Detector Device Seismic Detector Storage Huge Storage Unit Processor Visual Processing Unit Protection Light Armor Plating Weapon Spread Laser Energy Gun Spread Laser Ballistic Gun Light Assault Rifle Ballistic Cannon Light Cannon Impact Weapon Hammer Build | -11 -10 -10 ------- Run | Yrd Mat Min Slots Evolved . | . . . Power . | . . . Propulsion . | . . . Utility . | . . . Weapon . | . . . Parts Attached 34 | 8 26 . Power 1 | 1 . . Engine 1 | 1 . . Core . | . . . Reactor . | . . . Propulsion 6 | 2 4 . Treads 3 | . 3 . Leg . | . . . Wheel 2 | 2 . . Hover . | . . . Flight 1 | . 1 . Utility 16 | 3 13 . Device 5 | 2 3 . Storage 5 | 1 4 . Processor 2 | . 2 . Hackware . | . . . Protection 4 | . 4 . Artifact . | . . . Weapon 11 | 2 9 . Energy Gun 6 | . 6 . Energy Cannon . | . . . Ballistic Gun 2 | 2 . . Ballistic Cannon 1 | . 1 . Launcher . | . . . Special Weapon . | . . . Impact Weapon 2 | . 2 . Slashing Weapon . | . . . Piercing Weapon . | . . . Special Melee Weapon . | . . . Unidentified Prototypes . | . . . Parts Lost 4 | . . 4 Power 1 | . . 1 Propulsion . | . . . Utility 1 | . . 1 Weapon 2 | . . 2 Highest Loss Streak 4 | . . 4 To Critical Strikes . | . . . Average Slot Usage (%) 99 | . 99 85 Engine 14 | . 14 14 Treads 27 | . 27 14 Device 7 | . 7 . Storage 14 | . 14 14 Processor 1 | . 1 14 Protection 5 | . 5 . Energy Gun 23 | . 23 28 Ballistic Cannon 2 | . 2 . Impact Weapon 1 | . 1 . Naked Turns . | . . . Heaviest Build 94 | 14 94 31 Greatest Support 46 | 20 46 46 Greatest Overweight (x) 2 | . 2 1 Average Overweight (x) . | . . . Largest Inventory Capacity 25 | 8 25 15 Average Capacity 15 | 7 15 15 Most Carried 14 | 8 14 13 Average Carried 9 | 5 9 13 Final Capacity 15 | 8 15 15 Final Carried 13 | 8 13 13 Class Distribution -------------------- 100% | Mutant Dominant Class ---------------- Mutant | -10/Materials Mutant | -10/Mines Resources | -11 -10 -10 ----------- Run | Yrd Mat Min Matter Collected 604 | 328 253 23 Remotely . | . . . Salvage Created 605 | 177 423 5 Parts 41 | 13 28 . Haulers Intercepted 1 | . 1 . Recyclers Shooed 2 | 1 1 . Parts Field Recycled . | . . . Retrieved Matter . | . . . Parts Self-Destructed . | . . . Prevented . | . . . Kills | -11 -10 -10 ------- Run | Yrd Mat Min Combat Hostiles Destroyed 10 | . 9 1 Guns 7 | . 6 1 Cannons 3 | . 3 . Classes Destroyed 9 | 3 5 1 Worker 2 | 2 . . Builder 1 | . 1 . Tunneler 3 | 3 . . Hauler 1 | . 1 . Recycler 3 | 1 2 . Watcher 1 | . 1 . Swarmer 5 | . 5 . Grunt 4 | . 4 . Assembled 1 | . . 1 Best Kill Streak 3 | 3 3 1 Combat Bots Only 3 | . 3 1 Max Kills in Single Turn 2 | 1 2 1 Gunslinging . | . . . Exploded . | . . . Melee . | . . . Uniques/NPCs Destroyed . | . . . Combat | -11 -10 -10 -------- Run | Yrd Mat Min Hostile Shots Fired 98 | . 45 53 Missed 28 | . 20 8 Damage Taken 818 | . 187 631 Core 259 | . 33 226 Absorbed by Shields . | . . . Ignored by Resistances 234 | . 59 175 Core Remaining (%) 100 | 100 . . Volleys Fired 38 | 13 23 2 Largest 2 | 2 2 2 Hottest 130 | 40 130 130 Shots Fired 75 | 26 45 4 Gun 62 | 26 32 4 Cannon 13 | . 13 . Launcher . | . . . Special . | . . . Kinetic 39 | 26 13 . Thermal 22 | . 18 4 Explosive . | . . . Electromagnetic 14 | . 14 . Robot Hit Streak 26 | 11 26 7 Robot Miss Streak 2 | 1 2 1 Penetration Max . | . . . Secondary Targets 1 | . . 1 Max Gunslinging Chain 1 | . . 1 Shots Hit Robots 59 | 20 35 4 Core Hits 61 | 9 38 14 Critical Kills . | . . . Critical Parts Destroyed . | . . . Critical Strikes . | . . . Melee Attacks 9 | . 9 . Impact 9 | . 9 . Slashing . | . . . Piercing . | . . . Sneak Attacks . | . . . Combat Hostiles . | . . . Follow-up Attacks . | . . . Damage Inflicted 899 | 222 592 85 Guns 715 | 222 408 85 Cannons 167 | . 167 . Explosions . | . . . Melee . | . . . Ramming 17 | . 17 . Kinetic 389 | 222 167 . Thermal 294 | . 209 85 Explosive . | . . . Electromagnetic 199 | . 199 . Impact . | . . . Slashing . | . . . Piercing . | . . . Highest Corruption 2 | . . 2 Average Corruption 2 | . . 2 Corruption Purged . | . . . Corruption Blocked . | . . . Overload Shots . | . . . Overflow Damage . | . . . Projectiles . | . . . Explosions . | . . . Melee . | . . . Knockbacks 3 | . 3 . Impact . | . . . Kinetic 3 | . 3 . Secondary . | . . . Self-Inflicted Damage . | . . . Shots . | . . . Rammed 2 | . 2 . Targets Rammed 2 | . 2 . Kicked . | . . . Crushed . | . . . Highest Temperature 162 | . 162 138 Average Temperature 65 | . 63 82 Received Heat Transfer 69 | . 69 . Siege Activations . | . . . Robots Corrupted . | . . . Combat Hostiles . | . . . Parts Fried . | . . . Impact Corruptions . | . . . Robots Melted . | . . . Combat Hostiles . | . . . Parts Melted 1 | . 1 . Heat Transferred 370 | . 265 105 Parts Sabotaged . | . . . Parts Stolen . | . . . Parts Stripped . | . . . Power Chain Reactions . | . . . Alert | -11 -10 -10 ------- Run | Yrd Mat Min Peak Influence 145 | 30 145 . Initial 16 | . 16 . Average 34 | 9 36 . Maximum Alert Level . | . . . Low Security (%) 100 | 100 100 100 Level 1 . | . . . Level 2 . | . . . Level 3 . | . . . Level 4 . | . . . Level 5 . | . . . High Security . | . . . Max Security . | . . . Squads Dispatched . | . . . Investigation . | . . . Extermination . | . . . Reinforcement . | . . . Assault . | . . . Garrison . | . . . Intercept . | . . . Searches Triggered . | . . . Construction Impeded . | . . . Haulers Reinforced . | . . . Active Scanning Responses . | . . . Cargo Convoy Interrupts . | . . . Stealth | -11 -10 -10 --------- Run | Yrd Mat Min Distress Signals 2 | . 2 . Communications Jammed . | . . . Distress Signals . | . . . Times Spotted 39 | . 20 19 Peak Tracking Total 20 | . 5 20 Tactical Retreats 1 | . . 1 Traps | -11 -10 -10 ------- Run | Yrd Mat Min Traps Triggered . | . . . Indirectly . | . . . Trap Hack Attempts . | . . . Triggered . | . . . Disarmed . | . . . Reprogrammed . | . . . Reused . | . . . Traps Extracted . | . . . Installed . | . . . Triggered . | . . . Machines | -11 -10 -10 ---------- Run | Yrd Mat Min Machines Disabled . | . . . Max in Single Turn . | . . . Machines Repaired . | . . . Machines Dismantled . | . . . Machines Sabotaged . | . . . Overloaded Fab Kills . | . . . Hacking | -11 -10 -10 --------- Run | Yrd Mat Min Machines Accessed 9 | . 9 . Terminals 7 | . 7 . Fabricators . | . . . Repair Stations . | . . . Recycling Units 2 | . 2 . Scanalyzers . | . . . Garrison Access . | . . . Total Hacks 23 | . 23 . Successful 14 | . 14 . Failed 9 | . 9 . Catastrophic . | . . . Database Lockouts . | . . . Manual 11 | . 11 . Terminals 20 | . 20 . Fabricators . | . . . Repair Stations . | . . . Recycling Units 3 | . 3 . Scanalyzers . | . . . Garrison Access . | . . . Terminal Hacks 10 | . 10 . Record 2 | . 2 . Prototype ID Bank 1 | . 1 . Terminal Index 1 | . 1 . Locate Traps 1 | . 1 . Registered Components 1 | . 1 . Registered Prototypes 1 | . 1 . Zone Layout 3 | . 3 . Fabricator Hacks . | . . . Repair Station Hacks . | . . . Recycling Unit Hacks 2 | . 2 . Report Inventory 2 | . 2 . Scanalyzer . | . . . Garrison Access Hacks . | . . . Unauthorized Hacks 2 | . 2 . Terminals 2 | . 2 . Botnet 2 | . 2 . Fabricators . | . . . Repair Stations . | . . . Recycling Units . | . . . Scanalyzers . | . . . Garrison Access . | . . . Data Cores Recovered . | . . . Used . | . . . Hacking Detections 7 | . 7 . Full Trace Events 1 | . 1 . Feedback Events . | . . . Feedback Blocked . | . . . Robot Schematics Acquired . | . . . Robots Built . | . . . Authchips . | . . . Time . | . . . Total Robot Build Rating . | . . . Part Schematics Acquired . | . . . Parts Built . | . . . Authchips . | . . . Time . | . . . Total Part Build Rating . | . . . Parts Repaired . | . . . Time . | . . . Parts Recycled . | . . . Recycled Matter . | . . . Retrieved Matter . | . . . Retrieved Components . | . . . Parts Scanalyzed . | . . . Part Schematics Acquired . | . . . Parts Damaged . | . . . Bothacking | -11 -10 -10 ------------ Run | Yrd Mat Min Used RIF Installer . | . . . Robots Hacked . | . . . Non-combat . | . . . Combat . | . . . Robot Hacks Applied . | . . . Relay Couplers Released . | . . . Fabnet Peak Effective % . | . . . Robots Rewired . | . . . Allies Hacked . | . . . Hacks Repelled . | . . . Allies | -11 -10 -10 -------- Run | Yrd Mat Min Total Allies . | . . . Largest Group . | . . . Highest-Rated Group . | . . . Highest-Rated Ally . | . . . Total Orders . | . . . Ally Attacks . | . . . Total Damage . | . . . Kills . | . . . Allies Corrupted . | . . . Allies Melted . | . . . Intel | -11 -10 -10 ------- Run | Yrd Mat Min Robot Analysis Total . | . . . Derelict Logs Recovered . | . . . Drone Launches . | . . . Drone Recoveries . | . . . Exploration | -11 -10 -10 ------------- Run | Yrd Mat Min Turns Passed 1818 | 124 1676 18 Spaces Moved 882 | 88 787 7 Core 7 | 7 . . Treads 776 | . 769 7 Legs . | . . . Wheels 99 | 81 18 . Hover . | . . . Flight . | . . . Fastest Speed 50 | 50 80 160 Average Speed 173 | 77 184 171 Slowest Speed 320 | 80 320 240 Overloaded Moves . | . . . Propulsion Burnouts . | . . . Robots Hopped . | . . . Cave-ins Triggered . | . . . Exploration Rate (%) 32 | 4 87 5 Regions Visited 2 Branch Regions 1 Pre-discovered Areas . | . . . Known Exits Taken . | . . . Unknown Exits Taken 2 | 1 1 . Scrap Searched . | . . . Spaces Dug 6 | . 6 . Terrain Destroyed 6 | . 6 . Melee 6 | . 6 . Projectile . | . . . AOE . | . . . Terrain Rammed . | . . . Walls Destroyed . | . . . Machines Disabled . | . . . Actions | -11 -10 -10 --------- Run | Yrd Mat Min Total 1076 | 116 951 9 Wait 63 | . 63 . Move 880 | 87 786 7 Hop . | . . . Pick Up 23 | 7 16 . Fast Attach 22 | 8 14 . Attach 4 | . 4 . Detach 13 | 1 12 . Swap 8 | . 8 . Drop 14 | . 14 . Fire 38 | 13 23 2 Melee 9 | . 9 . Ram . | . . . Kick . | . . . Crush 2 | . 2 . Escape Stasis . | . . . Rewire . | . . . Trap . | . . . Miscellaneous . | . . . Route ------- -11/Scrapyard -10/Materials (discovered 4 exits: [*Mat x2] / [*Min x2]) -10/Mines History --------- Turn | Location | Event 17 | -11/Scrapyard | Discovered new exit (range 16) 125 | -11/Scrapyard | Entered Materials 305 | -10/Materials | Build established: Mutant 458 | -10/Materials | Discovered new exit (range 16) 768 | -10/Materials | Discovered new exit (range 11) 1531 | -10/Materials | Discovered new exit (range 4) 1748 | -10/Materials | Discovered new exit (range 17) 1801 | -10/Materials | Entered Mines 1802 | -10/Mines | Assembled infested the area 1812 | -10/Mines | Core integrity fell below 50% 1816 | -10/Mines | Core integrity fell below 20% 1819 | -10/Mines | Destroyed by as-24843 with Assembled Rifle Last Messages --------------- Lgt. Assault Rifle (96%) Lgt. Ion Engine (87%) Wheel (85%) Sml. Laser (77%) 01769_ Connecting with Recycling Unit... LOCATION=UNKNOWN GOAL=ESCAPE 01802_ ALERT: Infestation in the mines, dispatching Demolisher response squad. 01802_ T-07 Excavator is excavating. 01808_ Imp. Treads severed. 01810_ Visual Processing Unit destroyed. 01812_ as-35030 destroyed. 01812_ Switching to secondary target: as-93144. 01813_ Spread Laser destroyed. 01815_ Acquired 5 matter. 01816_ as-66935 destroyed. 01817_ Ion Engine destroyed. 01817_ System corrupted by crushing effect (+2). 01818_ Acquired 18 matter. Map ----- +----------------------------------------------------+ | | | | | | | | | | | | | | | | | | | | | | | | | | | ?????????????????????????????????????????????????? | | ?????????????????????????????????????????????????? | | ?????????????????????????????????????????????????? | | ???????????????????????????###???????????????????? | | ??????????????????????????# ##??????????????????? | | ?????????????????????????# ###????????????????? | | ???????????????????????## ##""#????????????? | | ????????????????#??????# X ?????????????? | | ????????????????# #????# ????????????????? | | ?????????????????#t ??## #??????????????????? | | ?????????????????# ## #???????????????????? | | ??????????????????# aaa #???????????????????? | | ??????????????????### a @ #???????????????????? | | ????????????????????###a ##???????????????????? | | ??????????????????????#a ####????????????????????? | | ??????????????????????#a #???????????????????????? | | ??????????????????????# #???????????????????????? | | ??????????????????????#a #???????????????????????? | | ?????????????????????? #???????????????????????? | | ?????????????????????? ???????????????????????? | | ????????????????????? ???????????????????????? | | ?????????????????????# ???????????????????????? | | ?????????????????????## ???????????????????????? | | ??????????????????????#### ??????????????????????? | | ??????????????????????????#??????????????????????? | | ?????????????????????????????????????????????????? | | ?????????????????????????????????????????????????? | | ?????????????????????????????????????????????????? | | ?????????????????????????????????????????????????? | | ?????????????????????????????????????????????????? | | ?????????????????????????????????????????????????? | | ?????????????????????????????????????????????????? | | ?????????????????????????????????????????????????? | | ?????????????????????????????????????????????????? | | ?????????????????????????????????????????????????? | | ?????????????????????????????????????????????????? | | ?????????????????????????????????????????????????? | +----------------------------------------------------+ Best States ------------- Heat Dissipation 39 Energy Generation 10 Energy Capacity 250 Matter Stores 300 Matter Capacity 300 Sight Range 18 Terrain Scan Range 16 Terrain Scan Density 10 Armor Coverage 150 Resistance: KI 20 Resistance: TH 20 Resistance: EX 20 Resistance: EM 20 Resistance: I 20 Resistance: S 20 Resistance: P 20 Propulsion Shielding 33 Evasion (%) 44 Recoil Reduction 2 Offensive Hacking 10 Item Schematics ----------------- None Robot Schematics ------------------ None Fabricated ------------ Nothing Alien Tech Used ----------------- None Achievements -------------- None Challenges ------------ None Game ------ Seed AntimissileMyomerPlating Manual? 0 Play Time 00:22:58 Cumulative 1.6 hours Start 2024.06.16 @ 10:24:36 End 2024.06.19 @ 19:43:09 Sessions 3 Manual Loads 0 Difficulty Adventurer Special Mode None Game No. 3 Rogue 0 Adventurer 3 Explorer 0 Win Type - Total 0 Types 0/0/0/0/0/0/0/0/0 Lore% 2 Gallery% 6 Achievement% 26 Wizard Run 0 Options --------- Layout 2 ASCII 0 Keyboard 1 Movement Arrows Keybinds 0 Fullscreen 1 Font 24/Smallcaps Map View 50x49 Zoom Use 0% Tactical HUD 1 Map Filters NONE Filters NONE Steam 1 RUN: bf438a5a-021f-4844-a8f7-4fba57f362a0